fUST/lending_fUST_20240930
["ID","MTS","AMOUNT","RATE_DAILY","PERIOD"]
[339566276,1727697050267,-500.0,0.00013972,2]
[339566277,1727697050277,-500.0,0.00013972,2]
[339566278,1727697050287,-554.68958422,0.00013972,2]
[339566279,1727697050296,-500.0,0.00013972,2]
[339566280,1727697050306,-901.875713,0.00013972,2]
[339566281,1727697050316,-511.00712291,0.00013972,2]
[339566282,1727697050326,-500.0,0.00013972,2]
[339566283,1727697050336,-500.0,0.00013972,2]
[339566284,1727697050347,-500.0,0.00013972,2]
[339566285,1727697050356,-500.0,0.00013972,2]
[339566286,1727697050366,-500.0,0.00013972,2]
[339566287,1727697050376,-500.0,0.00013972,2]
[339566288,1727697050386,-1603.045429,0.00013972,2]
[339566289,1727697050396,-500.0,0.00013972,2]
[339566290,1727697050407,-500.0,0.00013972,2]
[339566291,1727697050416,-500.0,0.00013972,2]
[339566292,1727697050426,-500.0,0.00013972,2]
[339566293,1727697050437,-500.0,0.00013972,2]
[339566294,1727697050447,-764.84,0.00013972,2]
[339566295,1727697050457,-151.0,0.00013972,2]
[339566296,1727697050467,-158.15725883,0.00013972,2]
[339566297,1727697050476,-151.0,0.00013972,2]
[339566298,1727697050486,-500.0,0.00013972,2]
[339566299,1727697050500,-251.47339405,0.00013972,2]
[339566300,1727697050510,-1603.045429,0.00013972,2]
[339566301,1727697050520,-860.11,0.00013972,2]
[339566302,1727697050531,-151.0,0.00013972,2]
[339566303,1727697050541,-500.0,0.00013972,2]
[339566304,1727697050552,-500.0,0.00013972,2]
[339566305,1727697050562,-500.0,0.00013972,2]
[339566306,1727697050573,-1000.73,0.00013972,2]
[339566307,1727697050582,-500.0,0.00013972,2]
[339566308,1727697050593,-500.0,0.00013972,2]
[339566309,1727697050604,-500.0,0.00013972,2]
[339566310,1727697050614,-500.0,0.00013972,2]
[339566311,1727697050624,-480.34917451,0.00013972,2]
[339566312,1727697050634,-247.475166,0.00013972,2]
[339566313,1727697050646,-760.25,0.00013972,2]
[339566314,1727697050656,-500.0,0.00013972,2]
[339566315,1727697050671,-20750.68,0.00013972,2]
[339566316,1727697050681,-500.0,0.00013972,2]
[339566317,1727697050691,-1169.213161,0.00013972,2]
[339566318,1727697050701,-247.475166,0.00013972,2]
[339566319,1727697050712,-1169.213161,0.00013972,2]
[339566320,1727697050722,-500.0,0.00013972,2]
[339566321,1727697050732,-500.0,0.00013972,2]
[339566322,1727697050742,-1195.9,0.00013972,2]
[339566323,1727697050753,-583.64873903,0.00013972,2]
[339566324,1727697050763,-295.410847,0.00013972,2]
[339566325,1727697050773,-500.0,0.00013972,2]
[339566326,1727697050783,-3025.85,0.00013972,2]
[339566327,1727697050794,-201.491016,0.00013972,2]
[339566328,1727697050804,-295.410847,0.00013972,2]
[339566329,1727697050815,-500.0,0.00013972,2]
[339566330,1727697050825,-500.0,0.00013972,2]
[339566331,1727697050836,-500.0,0.00013972,2]
[339566332,1727697050845,-500.0,0.00013972,2]
[339566333,1727697050856,-201.491016,0.00013972,2]
[339566334,1727697050866,-500.0,0.00013972,2]
[339566335,1727697050876,-500.0,0.00013972,2]
[339566336,1727697050886,-500.0,0.00013972,2]
[339566337,1727697050895,-649.05,0.00013972,2]
[339566338,1727697050906,-500.0,0.00013972,2]
[339566339,1727697050916,-449.82732769,0.00013972,2]
[339566340,1727697050926,-423.78479755,0.00013972,2]
[339566341,1727697050935,-500.0,0.00013972,2]
[339566342,1727697050945,-500.0,0.00013972,2]
[339566343,1727697050956,-503.95,0.00013972,2]
[339566344,1727697050966,-500.0,0.00013972,2]
[339566345,1727697051230,-500.0,0.00013972,2]
[339566346,1727697051240,-643.82,0.00013972,2]
[339566347,1727697051251,-771.8,0.00013972,2]
[339566348,1727697051260,-500.0,0.00013972,2]
[339566349,1727697051269,-451.180294,0.00013972,2]
[339566350,1727697051279,-500.0,0.00013972,2]
[339566351,1727697051288,-575.79421762,0.00013972,2]
[339566352,1727697051298,-500.0,0.00013972,2]
[339566353,1727697051307,-859.74,0.00013972,2]
[339566354,1727697051318,-451.180294,0.00013972,2]
[339566355,1727697051327,-500.0,0.00013972,2]
[339566356,1727697051337,-500.0,0.00013972,2]
[339566357,1727697051347,-500.0,0.00013972,2]
[339566358,1727697051356,-500.0,0.00013972,2]
[339566359,1727697051367,-151.0,0.00013972,2]
[339566360,1727697051376,-500.0,0.00013972,2]
[339566361,1727697051386,-500.0,0.00013972,2]
[339566362,1727697051396,-500.0,0.00013972,2]
[339566363,1727697051405,-500.0,0.00013972,2]
[339566364,1727697051415,-500.0,0.00013972,2]
[339566365,1727697051424,-500.0,0.00013972,2]
[339566366,1727697051434,-500.0,0.00013972,2]
[339566367,1727697051443,-500.0,0.00013972,2]
[339566368,1727697051454,-500.0,0.00013972,2]
[339566369,1727697051463,-500.0,0.00013972,2]
[339566370,1727697051473,-500.0,0.00013972,2]
[339566371,1727697051483,-500.0,0.00013972,2]
[339566372,1727697051493,-2616.73,0.00013972,2]
[339566373,1727697051502,-500.0,0.00013972,2]
[339566374,1727697051511,-500.0,0.00013972,2]
[339566375,1727697051520,-500.0,0.00013972,2]
[339566376,1727697051531,-500.0,0.00013972,2]
[339566377,1727697051540,-522.08,0.00013972,2]
[339566378,1727697051549,-500.0,0.00013972,2]
[339566379,1727697051558,-361.43701957,0.00013972,2]
[339566380,1727697051568,-500.0,0.00013972,2]
[339566381,1727697051577,-500.0,0.00013972,2]
[339566382,1727697051587,-885.986467,0.00013972,2]
[339566383,1727697051596,-500.0,0.00013972,2]
[339566384,1727697051606,-500.0,0.00013972,2]
[339566385,1727697051616,-530.69651116,0.00013972,2]
[339566386,1727697051625,-500.0,0.00013972,2]
[339566387,1727697051634,-500.0,0.00013972,2]
[339566388,1727697051644,-885.986467,0.00013972,2]
[339566389,1727697051653,-518.28263371,0.00013972,2]
[339566390,1727697051665,-500.0,0.00013972,2]
[339566391,1727697051676,-500.0,0.00013972,2]
[339566392,1727697051686,-629.96,0.00013972,2]
[339566393,1727697051695,-500.0,0.00013972,2]
[339566394,1727697051704,-500.0,0.00013972,2]
[339566395,1727697051714,-500.0,0.00013972,2]
[339566396,1727697051723,-500.0,0.00013972,2]
[339566397,1727697051734,-500.0,0.00013972,2]
[339566398,1727697051743,-500.0,0.00013972,2]
[339566399,1727697051753,-500.0,0.00013972,2]
[339566400,1727697051762,-558.91,0.00013972,2]
[339566401,1727697051771,-151.0,0.00013972,2]
[339566402,1727697051781,-500.0,0.00013972,2]
[339566403,1727697051790,-500.0,0.00013972,2]
[339566404,1727697051799,-500.0,0.00013972,2]
[339566405,1727697051808,-151.0,0.00013972,2]
[339566406,1727697051818,-2060.451062,0.00013972,2]
[339566407,1727697051828,-500.0,0.00013972,2]
[339566408,1727697051837,-1105.35,0.00013972,2]
[339566409,1727697051846,-500.0,0.00013972,2]
[339566410,1727697051855,-500.0,0.00013972,2]
[339566411,1727697051865,-2060.451062,0.00013972,2]
[339566412,1727697051875,-500.0,0.00013972,2]
[339566413,1727697051885,-151.0,0.00013972,2]
[339566414,1727697051894,-579.63,0.00013972,2]
[339566415,1727697051904,-500.0,0.00013972,2]
[339566416,1727697051913,-500.0,0.00013972,2]
[339566417,1727697051923,-354.24898084,0.00013972,2]
[339566418,1727697051933,-695.22,0.00013972,2]
[339566419,1727697051942,-1361.78,0.00013972,2]
[339566420,1727697051952,-500.0,0.00013972,2]
[339566421,1727697051961,-500.0,0.00013972,2]
[339566422,1727697051971,-342.58026692,0.00013972,2]
[339566423,1727697051981,-500.0,0.00013972,2]
[339566424,1727697051991,-500.0,0.00013972,2]
[339566425,1727697052001,-500.0,0.00013972,2]
[339566426,1727697052010,-548.99,0.00013972,2]
[339566427,1727697052019,-500.0,0.00013972,2]
[339566428,1727697052029,-500.0,0.00013972,2]
[339566429,1727697052039,-500.0,0.00013972,2]
[339566430,1727697052049,-606.78,0.00013972,2]
[339566431,1727697052059,-500.0,0.00013972,2]
[339566432,1727697052069,-500.0,0.00013972,2]
[339566433,1727697052079,-170.1685,0.00013972,2]
[339566434,1727697052089,-500.0,0.00013972,2]
[339566435,1727697052098,-500.0,0.00013972,2]
[339566436,1727697052108,-500.0,0.00013972,2]
[339566437,1727697052117,-170.1685,0.00013972,2]
[339566438,1727697052127,-500.0,0.00013972,2]
[339566439,1727697052136,-481.836223,0.00013972,2]
[339566440,1727697052146,-500.0,0.00013972,2]
[339566441,1727697052155,-500.0,0.00013972,2]
[339566442,1727697052165,-500.0,0.00013972,2]
[339566443,1727697052174,-500.0,0.00013972,2]
[339566444,1727697052184,-481.836223,0.00013972,2]
[339566445,1727697052194,-151.0,0.00013972,2]
[339566446,1727697052203,-622.94,0.00013972,2]
[339566447,1727697052213,-500.0,0.00013972,2]
[339566448,1727697052223,-151.0,0.00013972,2]
[339566449,1727697052232,-500.0,0.00013972,2]
[339566450,1727697052241,-500.0,0.00013972,2]
[339566451,1727697052251,-500.0,0.00013972,2]
[339566452,1727697052260,-151.0,0.00013972,2]
[339566453,1727697052270,-500.0,0.00013972,2]
[339566454,1727697052279,-500.0,0.00013972,2]
[339566455,1727697052289,-500.0,0.00013972,2]
[339566456,1727697052299,-500.0,0.00013972,2]
[339566457,1727697052309,-505.54388792,0.00013972,2]
[339566458,1727697052319,-500.0,0.00013972,2]
[339566459,1727697052328,-500.0,0.00013972,2]
[339566460,1727697052337,-688.87,0.00013972,2]
[339566461,1727697052347,-5850.330687,0.00013972,2]
[339566462,1727697052356,-684.88,0.00013972,2]
[339566463,1727697052366,-500.0,0.00013972,2]
[339566464,1727697052375,-500.0,0.00013972,2]
[339566465,1727697052384,-500.0,0.00013972,2]
[339566466,1727697052393,-5850.330687,0.00013972,2]
[339566467,1727697052402,-151.0,0.00013972,2]
[339566468,1727697052412,-1394.58,0.00013972,2]
[339566469,1727697052421,-500.0,0.00013972,2]
[339566470,1727697052430,-500.0,0.00013972,2]
[339566471,1727697052439,-500.0,0.00013972,2]
[339566472,1727697052449,-500.0,0.00013972,2]
[339566473,1727697052458,-500.0,0.00013972,2]
[339566474,1727697052467,-500.0,0.00013972,2]
[339566475,1727697052476,-500.0,0.00013972,2]
[339566476,1727697052485,-500.0,0.00013972,2]
[339566477,1727697052494,-500.0,0.00013972,2]
[339566478,1727697052503,-500.0,0.00013972,2]
[339566479,1727697052512,-500.0,0.00013972,2]
[339566480,1727697052521,-500.0,0.00013972,2]
[339566481,1727697052531,-500.0,0.00013972,2]
[339566482,1727697052540,-1087.58,0.00013972,2]
[339566483,1727697052549,-616.83152426,0.00013972,2]
[339566484,1727697052558,-500.0,0.00013972,2]
[339566485,1727697052567,-500.0,0.00013972,2]
[339566486,1727697052576,-500.0,0.00013972,2]
[339566487,1727697052585,-938.99,0.00013972,2]
[339566488,1727697052594,-497.76260312,0.00013972,2]
[339566489,1727697052603,-583.65161787,0.00013972,2]
[339566490,1727697052613,-500.0,0.00013972,2]
[339566491,1727697052623,-500.0,0.00013972,2]
[339566492,1727697052632,-524.23,0.00013972,2]
[339566493,1727697052641,-151.0,0.00013972,2]
[339566494,1727697052650,-986.82,0.00013972,2]
[339566495,1727697052659,-575.27,0.00013972,2]
[339566496,1727697052673,-500.0,0.00013972,2]
[339566497,1727697052682,-500.0,0.00013972,2]
[339566498,1727697052691,-500.0,0.00013972,2]
[339566499,1727697052701,-500.0,0.00013972,2]
[339566500,1727697052710,-623.09,0.00013972,2]
[339566501,1727697052719,-1300.25,0.00013972,2]
[339566502,1727697052728,-500.0,0.00013972,2]
[339566503,1727697052738,-500.0,0.00013972,2]
[339566504,1727697052748,-500.0,0.00013972,2]
[339566505,1727697052757,-223.450707,0.00013972,2]
[339566506,1727697052767,-500.0,0.00013972,2]
[339566507,1727697052776,-150.0,0.00013972,2]
[339566508,1727697052786,-151.0,0.00013972,2]
[339566509,1727697052795,-150.0,0.00013972,2]
[339566510,1727697052806,-223.450707,0.00013972,2]
[339566511,1727697052816,-500.0,0.00013972,2]
[339566512,1727697052826,-500.0,0.00013972,2]
[339566513,1727697052837,-500.0,0.00013972,2]
[339566514,1727697052847,-2592.96,0.00013972,2]
[339566515,1727697052856,-151.0,0.00013972,2]
[339566516,1727697052866,-711.36,0.00013972,2]
[339566517,1727697052875,-500.0,0.00013972,2]
[339566518,1727697052885,-500.0,0.00013972,2]
[339566519,1727697052895,-500.0,0.00013972,2]
[339566520,1727697052904,-500.0,0.00013972,2]
[339566521,1727697052913,-500.0,0.00013972,2]
[339566522,1727697052922,-500.0,0.00013972,2]
[339566523,1727697052931,-500.0,0.00013972,2]
[339566524,1727697052942,-500.0,0.00013972,2]
[339566525,1727697052951,-533.29,0.00013972,2]
[339566526,1727697052961,-500.0,0.00013972,2]
[339566527,1727697052971,-500.0,0.00013972,2]
[339566528,1727697052981,-500.0,0.00013972,2]
[339566529,1727697052993,-1181.41,0.00013972,2]
[339566530,1727697053003,-500.0,0.00013972,2]
[339566531,1727697053012,-500.0,0.00013972,2]
[339566532,1727697053022,-888.35,0.00013972,2]
[339566533,1727697053035,-326.17756451,0.00013972,2]
[339566534,1727697053045,-500.0,0.00013972,2]
[339566535,1727697053054,-500.0,0.00013972,2]
[339566536,1727697053064,-151.0,0.00013972,2]
[339566537,1727697053082,-500.0,0.00013972,2]
[339566538,1727697053092,-500.0,0.00013972,2]
[339566539,1727697053101,-500.0,0.00013972,2]
[339566540,1727697053111,-1265.32,0.00013972,2]
[339566541,1727697053120,-582.20990287,0.00013972,2]
[339566542,1727697053130,-500.0,0.00013972,2]
[339566543,1727697053139,-500.0,0.00013972,2]
[339566544,1727697053149,-500.0,0.00013972,2]
[339566545,1727697053159,-500.0,0.00013972,2]
[339566546,1727697053168,-500.0,0.00013972,2]
[339566547,1727697053178,-500.0,0.00013972,2]
[339566548,1727697053188,-500.0,0.00013972,2]
[339566549,1727697053197,-445.107113,0.00013972,2]
[339566550,1727697053206,-500.0,0.00013972,2]
[339566551,1727697053216,-1468.71,0.00013972,2]
[339566552,1727697053225,-1177.78,0.00013972,2]
[339566553,1727697053235,-500.0,0.00013972,2]
[339566554,1727697053244,-445.107113,0.00013972,2]
[339566555,1727697053254,-500.0,0.00013972,2]
[339566556,1727697053263,-500.0,0.00013972,2]
[339566557,1727697053272,-500.0,0.00013972,2]
[339566558,1727697053282,-500.0,0.00013972,2]
[339566559,1727697053292,-500.0,0.00013972,2]
[339566560,1727697053302,-500.0,0.00013972,2]
[339566561,1727697053311,-500.0,0.00013972,2]
[339566562,1727697053323,-500.0,0.00013972,2]
[339566563,1727697053332,-698.71,0.00013972,2]
[339566564,1727697053341,-500.0,0.00013972,2]
[339566565,1727697053351,-500.0,0.00013972,2]
[339566566,1727697053361,-500.0,0.00013972,2]
[339566567,1727697053371,-1506.41,0.00013972,2]
[339566568,1727697053380,-500.0,0.00013972,2]
[339566569,1727697053390,-286.39367595,0.00013972,2]
[339566570,1727697053400,-500.0,0.00013972,2]
[339566571,1727697053410,-500.0,0.00013972,2]
[339566572,1727697053419,-500.0,0.00013972,2]
[339566573,1727697053429,-389.33159179,0.00013972,2]
[339566574,1727697053438,-500.0,0.00013972,2]
[339566575,1727697053448,-500.0,0.00013972,2]
[339566576,1727697053457,-500.0,0.00013972,2]
[339566577,1727697053467,-500.0,0.00013973,2]
[339566578,1727697053476,-500.0,0.00013973,2]
[339566579,1727697053539,-501.57471175,0.00013973,2]
[339566580,1727697053548,-501.14209901,0.00013973,2]
[339566581,1727697053557,-344.00890144,0.00013973,2]
[339566582,1727697053567,-500.0,0.00013973,2]
[339566583,1727697053576,-500.0,0.00013973,2]
[339566584,1727697053585,-151.75054518,0.00013973,2]
[339566585,1727697053595,-383.09768856,0.00013973,2]
[339566586,1727697053604,-500.0,0.00013973,2]
[339566587,1727697053613,-500.0,0.00013973,2]
[339566588,1727697053622,-500.0,0.00013973,2]
[339566589,1727697053631,-500.0,0.00013973,2]
[339566590,1727697053639,-500.0,0.00013973,2]
[339566591,1727697053649,-500.0,0.00013973,2]
[339566592,1727697053658,-500.0,0.00013973,2]
[339566593,1727697053672,-507.70077374,0.00013973,2]
[339566594,1727697053682,-607.55261792,0.00013973,2]
[339566595,1727697053691,-500.0,0.00013999,2]
[339566596,1727697053699,-150.0,0.00013999,2]
[339566597,1727697053709,-150.0,0.00013999,2]
[339566598,1727697053717,-150.112233,0.00014,2]
[339566599,1727697053727,-150.112233,0.00014,2]
[339566600,1727697053736,-1000.0,0.00014,2]
[339566601,1727697053746,-1000.0,0.00014,2]
[339566602,1727697053756,-8792.63534762,0.00014,2]
[339566603,1727697053765,-1000.0,0.00014,2]
[339566604,1727697053774,-1000.0,0.00014,2]
[339566605,1727697053784,-647.82269529,0.00014,2]
[339566606,1727697053793,-300.97594335,0.00014,2]
[339566607,1727697053802,-1038.64285696,0.00014,2]
[339566608,1727697053813,-175.11015426,0.00014,2]
[339566609,1727697053823,-1000.0,0.00014,2]
[339566610,1727697053832,-166.666666,0.00014019,2]
[339566611,1727697053841,-500.0,0.00014027,2]
[339566612,1727697053850,-150.0,0.00014027,2]
[339566613,1727697053860,-150.0,0.00014027,2]
[339566614,1727697053869,-1500.0,0.00014027,2]
[339566615,1727697053879,-697.83561304,0.00014027,2]
[339566616,1727697053888,-1500.0,0.00014027,2]
[339566617,1727697053897,-375.22448258,0.00014027,2]
[339566618,1727697053906,-1008.2655006,0.00014027,2]
[339566619,1727697053915,-500.0,0.00014054,2]
[339566620,1727697053925,-150.0,0.00014054,2]
[339566621,1727697053934,-241.30539446,0.00014054,2]
[339566622,1727697053944,-1269.49030785,0.00014055,2]
[339566623,1727697053953,-2000.0,0.00014055,2]
[339566624,1727697053962,-500.0,0.00014082,2]
[339566625,1727697053971,-291.64125952,0.00014082,2]
[339566626,1727697053980,-2500.0,0.00014082,2]
[339566627,1727697053989,-150.112233,0.000141,2]
[339566628,1727697053998,-150.112233,0.000141,2]
[339566629,1727697054007,-500.0,0.00014109,2]
[339566630,1727697054016,-3000.0,0.0001411,2]
[339566631,1727697054026,-500.0,0.00014136,2]
[339566632,1727697054035,-3500.0,0.00014137,2]
[339566633,1727697054045,-500.0,0.00014164,2]
[339566634,1727697054054,-4000.0,0.00014164,2]
[339566635,1727697054063,-500.0,0.00014191,2]
[339566636,1727697054073,-4500.0,0.00014192,2]
[339566637,1727697054081,-1000.0,0.000142,2]
[339566638,1727697054090,-1000.0,0.000142,2]
[339566639,1727697054100,-1000.0,0.000142,2]
[339566640,1727697054109,-1000.0,0.000142,2]
[339566641,1727697054118,-1000.0,0.000142,2]
[339566642,1727697054127,-1000.0,0.000142,2]
[339566643,1727697054136,-1000.0,0.000142,2]
[339566644,1727697054145,-1000.0,0.000142,2]
[339566645,1727697054155,-1000.0,0.000142,2]
[339566646,1727697054164,-1011.96370607,0.000142,2]
[339566647,1727697054174,-150.112233,0.000142,2]
[339566648,1727697054183,-500.0,0.00014219,2]
[339566649,1727697054192,-5000.0,0.00014219,2]
[339566650,1727697054201,-500.0,0.00014246,2]
[339566651,1727697054209,-500.0,0.00014246,2]
[339566652,1727697054218,-500.0,0.00014246,2]
[339566653,1727697054227,-500.0,0.00014246,2]
[339566654,1727697054236,-500.0,0.00014246,2]
[339566655,1727697054246,-500.0,0.00014246,2]
[339566656,1727697054255,-500.0,0.00014246,2]
[339566657,1727697054264,-500.0,0.00014246,2]
[339566658,1727697054273,-500.0,0.00014246,2]
[339566659,1727697054282,-350.79695751,0.00014246,2]
[339566660,1727697054291,-500.0,0.00014246,2]
[339566661,1727697054300,-500.0,0.00014246,2]
[339566662,1727697054309,-500.0,0.00014246,2]
[339566663,1727697054318,-1044.51,0.00014246,2]
[339566664,1727697054327,-500.0,0.00014246,2]
[339566665,1727697054336,-500.0,0.00014246,2]
[339566666,1727697054345,-263.50113899,0.00014246,2]
[339566667,1727697054354,-500.0,0.00014246,2]
[339566668,1727697054364,-500.0,0.00014246,2]
[339566669,1727697054373,-500.0,0.00014246,2]
[339566670,1727697054382,-500.0,0.00014246,2]
[339566671,1727697054390,-500.0,0.00014246,2]
[339566672,1727697054399,-500.0,0.00014246,2]
[339566673,1727697054409,-500.0,0.00014246,2]
[339566674,1727697054419,-500.0,0.00014246,2]
[339566675,1727697054429,-500.0,0.00014246,2]
[339566676,1727697054439,-1478.07,0.00014246,2]
[339566677,1727697054449,-500.0,0.00014246,2]
[339566678,1727697054459,-500.0,0.00014246,2]
[339566679,1727697054468,-500.0,0.00014246,2]
[339566680,1727697054477,-500.0,0.00014246,2]
[339566681,1727697054486,-500.0,0.00014246,2]
[339566682,1727697054495,-500.0,0.00014246,2]
[339566683,1727697054504,-500.0,0.00014246,2]
[339566684,1727697054513,-500.0,0.00014246,2]
[339566685,1727697054522,-500.0,0.00014246,2]
[339566686,1727697054531,-500.0,0.00014246,2]
[339566687,1727697054541,-500.0,0.00014246,2]
[339566688,1727697054549,-500.0,0.00014246,2]
[339566689,1727697054558,-2393.84,0.00014246,2]
[339566690,1727697054567,-500.0,0.00014246,2]
[339566691,1727697054576,-500.0,0.00014246,2]
[339566692,1727697054586,-2240.18,0.00014246,2]
[339566693,1727697054595,-673.73,0.00014246,2]
[339566694,1727697054605,-500.0,0.00014246,2]
[339566695,1727697054614,-500.0,0.00014246,2]
[339566696,1727697054623,-500.0,0.00014246,2]
[339566697,1727697054632,-500.0,0.00014246,2]
[339566698,1727697054641,-612.1,0.00014246,2]
[339566699,1727697054650,-500.0,0.00014246,2]
[339566700,1727697054659,-500.0,0.00014246,2]
[339566701,1727697054672,-500.0,0.00014246,2]
[339566702,1727697054681,-500.0,0.00014246,2]
[339566703,1727697054691,-500.0,0.00014246,2]
[339566704,1727697054700,-500.0,0.00014246,2]
[339566705,1727697054709,-500.0,0.00014246,2]
[339566706,1727697054718,-500.0,0.00014246,2]
[339566707,1727697054727,-500.0,0.00014246,2]
[339566708,1727697054737,-500.0,0.00014246,2]
[339566709,1727697054746,-345.63100935,0.00014246,2]
[339566710,1727697054755,-500.0,0.00014246,2]
[339566711,1727697054764,-500.0,0.00014246,2]
[339566712,1727697054773,-500.62,0.00014246,2]
[339566713,1727697054782,-500.0,0.00014246,2]
[339566714,1727697054791,-507.37077679,0.00014246,2]
[339566715,1727697054800,-500.0,0.00014246,2]
[339566716,1727697054810,-500.0,0.00014246,2]
[339566717,1727697054820,-500.0,0.00014246,2]
[339566718,1727697054830,-500.0,0.00014246,2]
[339566719,1727697054839,-500.0,0.00014246,2]
[339566720,1727697054847,-500.0,0.00014246,2]
[339566721,1727697054856,-500.0,0.00014246,2]
[339566722,1727697054865,-500.0,0.00014246,2]
[339566723,1727697054874,-512.04,0.00014246,2]
[339566724,1727697054883,-500.0,0.00014246,2]
[339566725,1727697054893,-504.24769947,0.00014246,2]
[339566726,1727697054902,-500.0,0.00014246,2]
[339566727,1727697054911,-500.0,0.00014246,2]
[339566728,1727697054920,-500.0,0.00014246,2]
[339566729,1727697054929,-150.00455457,0.00014246,2]
[339566730,1727697054938,-634.03,0.00014246,2]
[339566731,1727697054947,-500.0,0.00014246,2]
[339566732,1727697054956,-500.0,0.00014246,2]
[339566733,1727697054965,-500.0,0.00014246,2]
[339566734,1727697054974,-500.0,0.00014246,2]
[339566735,1727697054983,-500.0,0.00014246,2]
[339566736,1727697054992,-505.20408883,0.00014246,2]
[339566737,1727697055001,-500.0,0.00014246,2]
[339566738,1727697055010,-311.64093034,0.00014246,2]
[339566739,1727697055019,-500.0,0.00014246,2]
[339566740,1727697055028,-2221.59,0.00014246,2]
[339566741,1727697055037,-500.0,0.00014246,2]
[339566742,1727697055047,-500.0,0.00014246,2]
[339566743,1727697055057,-500.0,0.00014246,2]
[339566744,1727697055067,-500.0,0.00014246,2]
[339566745,1727697055076,-500.0,0.00014246,2]
[339566746,1727697055085,-500.0,0.00014246,2]
[339566747,1727697055094,-565.34947181,0.00014246,2]
[339566748,1727697055102,-500.0,0.00014246,2]
[339566749,1727697055112,-500.0,0.00014246,2]
[339566750,1727697055121,-500.0,0.00014246,2]
[339566751,1727697055129,-500.0,0.00014246,2]
[339566752,1727697055139,-500.0,0.00014246,2]
[339566753,1727697055148,-500.0,0.00014246,2]
[339566754,1727697055157,-500.0,0.00014246,2]
[339566755,1727697055165,-598.44748987,0.00014246,2]
[339566756,1727697055174,-500.0,0.00014246,2]
[339566757,1727697055183,-501.15,0.00014246,2]
[339566758,1727697055192,-500.0,0.00014246,2]
[339566759,1727697055201,-985.37,0.00014246,2]
[339566760,1727697055210,-500.0,0.00014246,2]
[339566761,1727697055219,-500.0,0.00014246,2]
[339566762,1727697055228,-534.5902991,0.00014246,2]
[339566763,1727697055237,-676.75,0.00014246,2]
[339566764,1727697055246,-587.95,0.00014246,2]
[339566765,1727697055255,-500.0,0.00014246,2]
[339566766,1727697055264,-500.0,0.00014246,2]
[339566767,1727697055273,-500.0,0.00014246,2]
[339566768,1727697055282,-500.0,0.00014246,2]
[339566769,1727697055291,-500.0,0.00014246,2]
[339566770,1727697055300,-636.71,0.00014246,2]
[339566771,1727697055309,-500.0,0.00014246,2]
[339566772,1727697055318,-579.24,0.00014246,2]
[339566773,1727697055327,-500.0,0.00014246,2]
[339566774,1727697055337,-500.0,0.00014246,2]
[339566775,1727697055346,-500.0,0.00014246,2]